[Event "*** Titled Tuesday Blitz"]
[Site "Chess.com"]
[Date "2019.06.04"]
[Round "8"]
[White "Filip_Covic"]
[Black "Valuebet2000"]
[Result "0-1"]
[WhiteElo "2368"]
[BlackElo "2553"]
[TimeControl "180+2"]
[EndTime "14:49:09 PDT"]
[Termination "Valuebet2000 won by resignation"]

1. d4 {[%clk 0:03:01.9]} 1... d5 {[%clk 0:03:00.8]} 2. Nf3 {[%clk 0:03:03.4]}
2... Nf6 {[%clk 0:03:01.7]} 3. Bf4 {[%clk 0:03:03.1]} 3... c5 {[%clk 0:03:02.5]}
4. e3 {[%clk 0:03:03.4]} 4... Nc6 {[%clk 0:03:03.7]} 5. Nbd2 {[%clk 0:03:03.2]}
5... cxd4 {[%clk 0:03:02.7]} 6. exd4 {[%clk 0:03:02.6]} 6... Bf5 {[%clk
0:03:03.8]} 7. c3 {[%clk 0:03:02.3]} 7... e6 {[%clk 0:03:05]} 8. Be2 {[%clk
0:03:02.6]} 8... Bd6 {[%clk 0:03:05.2]} 9. Bxd6 {[%clk 0:03:02.1]} 9... Qxd6
{[%clk 0:03:07.1]} 10. O-O {[%clk 0:03:03.1]} 10... O-O {[%clk 0:03:07.9]} 11.
Nb3 {[%clk 0:02:54.3]} 11... b6 {[%clk 0:03:07]} 12. a4 {[%clk 0:02:52.2]} 12...
Rab8 {[%clk 0:03:00.1]} 13. Bb5 {[%clk 0:02:50.6]} 13... Bg4 {[%clk 0:02:54.7]}
14. h3 {[%clk 0:02:51.6]} 14... Bxf3 {[%clk 0:02:54.2]} 15. Qxf3 {[%clk
0:02:51.4]} 15... Ne4 {[%clk 0:02:55.7]} 16. Qe3 {[%clk 0:02:44.3]} 16... Na5
{[%clk 0:02:40.2]} 17. Nc1 {[%clk 0:02:35.5]} 17... Qc7 {[%clk 0:02:22.8]} 18.
Re1 {[%clk 0:02:33.7]} 18... Nd6 {[%clk 0:02:19.7]} 19. Qe5 {[%clk 0:02:27.2]}
19... Rfc8 {[%clk 0:01:32.6]} 20. Ba6 {[%clk 0:02:24.3]} 20... Rd8 {[%clk
0:01:34]} 21. Nd3 {[%clk 0:02:21.6]} 21... Nac4 {[%clk 0:01:19.9]} 22. Qg3
{[%clk 0:02:19.7]} 22... Nd2 {[%clk 0:00:53.8]} 23. f3 {[%clk 0:02:11.8]} 23...
Ne8 {[%clk 0:00:46.8]} 24. Qf2 {[%clk 0:02:09.4]} 24... Nc4 {[%clk 0:00:47.6]}
25. Ne5 {[%clk 0:02:06.2]} 25... Nxe5 {[%clk 0:00:48.3]} 26. Rxe5 {[%clk
0:02:08]} 26... Nd6 {[%clk 0:00:48.6]} 27. Rae1 {[%clk 0:02:03.7]} 27... b5
{[%clk 0:00:43.5]} 28. axb5 {[%clk 0:01:59.7]} 28... Nxb5 {[%clk 0:00:45.4]} 29.
Qe2 {[%clk 0:01:57.5]} 29... Qb6 {[%clk 0:00:39.2]} 30. Ra1 {[%clk 0:01:51.1]}
30... Nd6 {[%clk 0:00:30.8]} 31. b4 {[%clk 0:01:43.2]} 31... Rd7 {[%clk
0:00:22.2]} 32. Bd3 {[%clk 0:01:42.3]} 32... Rc7 {[%clk 0:00:22]} 33. Qd2 {[%clk
0:01:27.5]} 33... Nc4 {[%clk 0:00:22]} 34. Qc1 {[%clk 0:01:18.2]} 34... Nxe5
{[%clk 0:00:19.8]} 0-1

[Event "*** Titled Tuesday Blitz"]
[Site "Chess.com"]
[Date "2019.06.04"]
[Round "8"]
[White "dopolian"]
[Black "ozates"]
[Result "0-1"]
[WhiteElo "2265"]
[BlackElo "2250"]
[TimeControl "180+2"]
[EndTime "14:49:24 PDT"]
[Termination "ozates won by resignation"]

1. e4 {[%clk 0:03:01.9]} 1... c5 {[%clk 0:02:58.3]} 2. Nf3 {[%clk 0:03:02.8]}
2... Nc6 {[%clk 0:02:58.8]} 3. d4 {[%clk 0:03:02.9]} 3... cxd4 {[%clk
0:02:59.7]} 4. Nxd4 {[%clk 0:03:04.8]} 4... e5 {[%clk 0:03:01.5]} 5. Nb5 {[%clk
0:03:05.7]} 5... d6 {[%clk 0:03:02.5]} 6. c4 {[%clk 0:03:00.5]} 6... Be7 {[%clk
0:03:02.3]} 7. N1c3 {[%clk 0:02:58.8]} 7... a6 {[%clk 0:03:01.5]} 8. Na3 {[%clk
0:02:59.5]} 8... Be6 {[%clk 0:03:02.7]} 9. Be2 {[%clk 0:02:54.9]} 9... Nf6
{[%clk 0:03:03.2]} 10. Bg5 {[%clk 0:02:48.6]} 10... O-O {[%clk 0:03:03.3]} 11.
Bxf6 {[%clk 0:02:46.5]} 11... Bxf6 {[%clk 0:03:03.5]} 12. O-O {[%clk 0:02:45.8]}
12... Bg5 {[%clk 0:03:03.8]} 13. Nd5 {[%clk 0:02:38.4]} 13... Nd4 {[%clk
0:03:03.8]} 14. Nc2 {[%clk 0:02:31]} 14... Bxd5 {[%clk 0:03:00.4]} 15. cxd5
{[%clk 0:02:14.2]} 15... Qb6 {[%clk 0:02:48.9]} 16. Nxd4 {[%clk 0:01:54.9]}
16... exd4 {[%clk 0:02:45.1]} 17. b3 {[%clk 0:01:45.1]} 17... Rac8 {[%clk
0:02:41.4]} 18. Bc4 {[%clk 0:01:41.5]} 18... Qc5 {[%clk 0:02:38.4]} 19. Qe2
{[%clk 0:01:34.5]} 19... b5 {[%clk 0:02:38.4]} 20. Bd3 {[%clk 0:01:35.3]} 20...
Qb4 {[%clk 0:02:33.2]} 21. f4 {[%clk 0:01:31.8]} 21... Bf6 {[%clk 0:02:34]} 22.
e5 {[%clk 0:01:09.2]} 22... Rfe8 {[%clk 0:02:35]} 23. Bxh7+ {[%clk 0:00:55.1]}
23... Kxh7 {[%clk 0:02:30.2]} 24. Qh5+ {[%clk 0:00:51.1]} 24... Kg8 {[%clk
0:02:29.3]} 25. exf6 {[%clk 0:00:53]} 25... d3 {[%clk 0:02:30.3]} 26. fxg7
{[%clk 0:00:47.4]} 26... Qd4+ {[%clk 0:02:31]} 27. Kh1 {[%clk 0:00:46.9]} 27...
Qxg7 {[%clk 0:02:31.5]} 28. h3 {[%clk 0:00:34.1]} 28... Re2 {[%clk 0:02:23.1]}
29. Qf3 {[%clk 0:00:30.5]} 29... Rcc2 {[%clk 0:02:21.7]} 30. Rg1 {[%clk
0:00:30.1]} 30... Rf2 {[%clk 0:02:07.4]} 31. Qxd3 {[%clk 0:00:24.7]} 31... Kh8
{[%clk 0:01:39.3]} 32. Qe4 {[%clk 0:00:16.3]} 32... Qg3 {[%clk 0:01:32]} 33.
Rgf1 {[%clk 0:00:03.3]} 33... Rxg2 {[%clk 0:01:27.2]} 34. Qe8+ {[%clk 0:00:03]}
34... Kg7 {[%clk 0:01:26.8]} 0-1

[Event "*** Titled Tuesday Blitz"]
[Site "Chess.com"]
[Date "2019.06.04"]
[Round "8"]
[White "hellokostya"]
[Black "ChessWeebs"]
[Result "1/2-1/2"]
[WhiteElo "2541"]
[BlackElo "2790"]
[TimeControl "180+2"]
[EndTime "14:49:25 PDT"]
[Termination "Game drawn by agreement"]

1. d4 {[%clk 0:03:01.9]} 1... Nf6 {[%clk 0:03:00.6]} 2. c4 {[%clk 0:03:00.6]}
2... c6 {[%clk 0:03:00.7]} 3. Nf3 {[%clk 0:03:00.7]} 3... d5 {[%clk 0:03:01.6]}
4. e3 {[%clk 0:03:01]} 4... Bf5 {[%clk 0:02:59.1]} 5. Nc3 {[%clk 0:03:01.1]}
5... e6 {[%clk 0:03:00.2]} 6. Nh4 {[%clk 0:03:01.4]} 6... Be4 {[%clk 0:03:01.7]}
7. f3 {[%clk 0:03:01.2]} 7... Bg6 {[%clk 0:03:03.1]} 8. Qb3 {[%clk 0:03:02]}
8... Qc7 {[%clk 0:03:04.2]} 9. g3 {[%clk 0:03:01.2]} 9... Be7 {[%clk 0:03:05.1]}
10. Bd2 {[%clk 0:02:59.1]} 10... dxc4 {[%clk 0:03:05.5]} 11. Bxc4 {[%clk
0:02:56.4]} 11... a6 {[%clk 0:03:07]} 12. Be2 {[%clk 0:02:42.5]} 12... c5 {[%clk
0:03:03]} 13. dxc5 {[%clk 0:02:31]} 13... Nc6 {[%clk 0:02:57]} 14. Na4 {[%clk
0:02:19]} 14... Rd8 {[%clk 0:02:57.9]} 15. O-O-O {[%clk 0:02:13.9]} 15... Nd7
{[%clk 0:02:53.4]} 16. Nxg6 {[%clk 0:02:13.3]} 16... hxg6 {[%clk 0:02:54.3]} 17.
Kb1 {[%clk 0:02:11.9]} 17... Nxc5 {[%clk 0:02:34.9]} 18. Nxc5 {[%clk 0:02:13]}
18... Bxc5 {[%clk 0:02:36.8]} 19. Qc3 {[%clk 0:02:04.5]} 19... Qe5 {[%clk
0:02:32.6]} 20. Qxe5 {[%clk 0:02:01.3]} 20... Nxe5 {[%clk 0:02:34.5]} 21. Bc3
{[%clk 0:01:58.4]} 21... Rxd1+ {[%clk 0:02:33]} 22. Bxd1 {[%clk 0:01:49.6]}
22... Nc4 {[%clk 0:02:33]} 23. e4 {[%clk 0:01:45]} 23... Bf2 {[%clk 0:02:14.5]}
24. Be2 {[%clk 0:01:35.9]} 24... Ne3 {[%clk 0:01:47.5]} 25. Bxg7 {[%clk
0:01:30.8]} 25... Rh7 {[%clk 0:01:48.8]} 26. Bd4 {[%clk 0:01:27.3]} 26... Ng4
{[%clk 0:01:27.5]} 27. fxg4 {[%clk 0:01:09.4]} 27... Bxd4 {[%clk 0:01:29.1]} 28.
h4 {[%clk 0:01:10.7]} 28... Bf2 {[%clk 0:01:28]} 29. h5 {[%clk 0:01:11.5]} 29...
Bxg3 {[%clk 0:01:28.2]} 30. Kc2 {[%clk 0:00:58.6]} 30... Ke7 {[%clk 0:01:28.4]}
31. Rh3 {[%clk 0:00:53.8]} 31... Bd6 {[%clk 0:01:13]} 32. hxg6 {[%clk 0:00:48]}
32... Rg7 {[%clk 0:01:06.2]} 33. gxf7 {[%clk 0:00:42.6]} 33... Rxf7 {[%clk
0:01:07.2]} 34. Bc4 {[%clk 0:00:34.1]} 34... Rf2+ {[%clk 0:01:05.2]} 35. Kd3
{[%clk 0:00:24.5]} 35... Be5 {[%clk 0:00:56.6]} 36. Rh6 {[%clk 0:00:22.6]} 36...
Rf6 {[%clk 0:00:57.1]} 37. Rh7+ {[%clk 0:00:23.7]} 37... Rf7 {[%clk 0:00:58.4]}
38. Rxf7+ {[%clk 0:00:22.9]} 38... Kxf7 {[%clk 0:01:00.3]} 39. b3 {[%clk
0:00:22.3]} 39... b5 {[%clk 0:01:00.2]} 1/2-1/2

[Event "*** Titled Tuesday Blitz"]
[Site "Chess.com"]
[Date "2019.06.04"]
[Round "8"]
[White "vohiraa"]
[Black "Rhinos1"]
[Result "1-0"]
[WhiteElo "2297"]
[BlackElo "2054"]
[TimeControl "180+2"]
[EndTime "14:49:25 PDT"]
[Termination "vohiraa won by checkmate"]

1. e4 {[%clk 0:03:01.9]} 1... e5 {[%clk 0:02:21]} 2. Nf3 {[%clk 0:03:01.8]} 2...
Nc6 {[%clk 0:02:21.6]} 3. Bb5 {[%clk 0:03:02.5]} 3... a6 {[%clk 0:02:21.1]} 4.
Ba4 {[%clk 0:03:02.7]} 4... d6 {[%clk 0:02:22]} 5. O-O {[%clk 0:03:02.5]} 5...
Bd7 {[%clk 0:02:22.9]} 6. c3 {[%clk 0:02:59.8]} 6... Nge7 {[%clk 0:02:23.8]} 7.
d4 {[%clk 0:03:00.4]} 7... Ng6 {[%clk 0:02:24.9]} 8. d5 {[%clk 0:03:00.1]} 8...
Nb8 {[%clk 0:02:24.6]} 9. Bxd7+ {[%clk 0:03:01.7]} 9... Nxd7 {[%clk 0:02:26.5]}
10. c4 {[%clk 0:03:03.1]} 10... Be7 {[%clk 0:02:27.9]} 11. Nc3 {[%clk
0:03:04.6]} 11... O-O {[%clk 0:02:29.8]} 12. Bd2 {[%clk 0:02:44.2]} 12... Nc5
{[%clk 0:02:24.3]} 13. b4 {[%clk 0:02:36.8]} 13... Nd3 {[%clk 0:02:24.5]} 14.
Qb1 {[%clk 0:02:29.7]} 14... Ndf4 {[%clk 0:02:23.8]} 15. g3 {[%clk 0:02:11.4]}
15... Qd7 {[%clk 0:02:18.7]} 16. Qd1 {[%clk 0:01:49.9]} 16... Nh3+ {[%clk
0:01:57.4]} 17. Kg2 {[%clk 0:01:46.1]} 17... f5 {[%clk 0:01:57.7]} 18. exf5
{[%clk 0:01:40.2]} 18... Qxf5 {[%clk 0:01:52.2]} 19. Qe2 {[%clk 0:01:34.2]}
19... Rae8 {[%clk 0:01:41.2]} 20. Qe3 {[%clk 0:01:34.5]} 20... Nhf4+ {[%clk
0:01:38.6]} 21. gxf4 {[%clk 0:01:34.4]} 21... exf4 {[%clk 0:01:38.4]} 22. Qe4
{[%clk 0:01:30.2]} 22... Qg4+ {[%clk 0:01:36.8]} 23. Kh1 {[%clk 0:01:31.9]}
23... Bf6 {[%clk 0:01:32.5]} 24. Qd3 {[%clk 0:01:32.4]} 24... Ne5 {[%clk
0:01:09.8]} 25. Nxe5 {[%clk 0:01:32.4]} 25... Bxe5 {[%clk 0:01:09.7]} 26. f3
{[%clk 0:01:33]} 26... Qh5 {[%clk 0:01:06.4]} 27. Rg1 {[%clk 0:01:32.5]} 27...
Rf6 {[%clk 0:01:04.2]} 28. Raf1 {[%clk 0:01:30.8]} 28... Rh6 {[%clk 0:00:50.4]}
29. Rf2 {[%clk 0:01:31.5]} 29... Rf8 {[%clk 0:00:48.2]} 30. Ne4 {[%clk
0:01:31.7]} 30... Rf5 {[%clk 0:00:44.3]} 31. Rfg2 {[%clk 0:01:23.7]} 31... Qh3
{[%clk 0:00:39.8]} 32. Nf2 {[%clk 0:01:01.9]} 32... Rfh5 {[%clk 0:00:33.9]} 33.
Nxh3 {[%clk 0:01:02.3]} 33... Rxh3 {[%clk 0:00:29.3]} 34. Bxf4 {[%clk
0:01:03.6]} 34... Bxf4 {[%clk 0:00:29.3]} 35. Rxg7+ {[%clk 0:01:04.5]} 35... Kf8
{[%clk 0:00:25.1]} 36. Qf5+ {[%clk 0:01:04.9]} 36... Ke8 {[%clk 0:00:24]} 37.
Qc8# {[%clk 0:01:06.3]} 1-0

[Event "*** Titled Tuesday Blitz"]
[Site "Chess.com"]
[Date "2019.06.04"]
[Round "8"]
[White "vladimirdamjanovic"]
[Black "Fighter008"]
[Result "1-0"]
[WhiteElo "2517"]
[BlackElo "2636"]
[TimeControl "180+2"]
[EndTime "14:49:27 PDT"]
[Termination "vladimirdamjanovic won by resignation"]

1. e4 {[%clk 0:03:01.9]} 1... c5 {[%clk 0:03:00.6]} 2. Nf3 {[%clk 0:03:02.4]}
2... d6 {[%clk 0:03:01.6]} 3. d4 {[%clk 0:03:03.1]} 3... cxd4 {[%clk 0:03:03.2]}
4. Nxd4 {[%clk 0:03:03.2]} 4... Nf6 {[%clk 0:03:04.8]} 5. Nc3 {[%clk 0:03:04.6]}
5... a6 {[%clk 0:03:06.2]} 6. Qf3 {[%clk 0:03:05.7]} 6... g6 {[%clk 0:03:05.2]}
7. Bg5 {[%clk 0:03:05.7]} 7... Bg7 {[%clk 0:03:06.2]} 8. Be2 {[%clk 0:03:05.7]}
8... O-O {[%clk 0:03:06.6]} 9. Qe3 {[%clk 0:03:06.6]} 9... Re8 {[%clk
0:02:51.4]} 10. h4 {[%clk 0:03:04.3]} 10... Nc6 {[%clk 0:02:50.3]} 11. O-O-O
{[%clk 0:03:03.3]} 11... Nxd4 {[%clk 0:02:48.1]} 12. Rxd4 {[%clk 0:03:02.2]}
12... Qa5 {[%clk 0:02:48.8]} 13. Ra4 {[%clk 0:02:58.3]} 13... Qc5 {[%clk
0:02:46]} 14. Qxc5 {[%clk 0:02:46.2]} 14... dxc5 {[%clk 0:02:47.9]} 15. e5
{[%clk 0:02:39.7]} 15... Nd7 {[%clk 0:02:40.9]} 16. Nd5 {[%clk 0:02:30.1]} 16...
Nxe5 {[%clk 0:02:29.8]} 17. Nc7 {[%clk 0:02:22.9]} 17... Bd7 {[%clk 0:02:29.5]}
18. Ra3 {[%clk 0:02:09.1]} 18... h6 {[%clk 0:02:27]} 19. Be3 {[%clk 0:01:57.5]}
19... Bc6 {[%clk 0:02:16.6]} 20. Nxa8 {[%clk 0:01:43.3]} 20... Rxa8 {[%clk
0:02:12.9]} 21. Bxc5 {[%clk 0:01:42.2]} 21... Bxg2 {[%clk 0:02:13.1]} 22. Rg1
{[%clk 0:01:40.3]} 22... Be4 {[%clk 0:02:14.5]} 23. Bxe7 {[%clk 0:01:25.2]}
23... Rc8 {[%clk 0:02:15.2]} 24. Rc3 {[%clk 0:01:21.3]} 24... Nc6 {[%clk
0:02:09.4]} 25. Bb4 {[%clk 0:00:59.5]} 25... a5 {[%clk 0:01:58.3]} 26. Bxa5
{[%clk 0:00:46.3]} 26... Ra8 {[%clk 0:01:59]} 27. Re3 {[%clk 0:00:34.3]} 27...
Rxa5 {[%clk 0:01:58.2]} 28. Rxe4 {[%clk 0:00:34.8]} 28... Rxa2 {[%clk
0:01:59.8]} 29. Re8+ {[%clk 0:00:21.6]} 29... Kh7 {[%clk 0:02:00.1]} 30. Rg3
{[%clk 0:00:21.4]} 30... Bxb2+ {[%clk 0:01:49.9]} 31. Kb1 {[%clk 0:00:21.6]}
31... Ra4 {[%clk 0:01:45.4]} 32. Kxb2 {[%clk 0:00:21.6]} 32... Rxh4 {[%clk
0:01:46.9]} 33. Bc4 {[%clk 0:00:20.3]} 33... Kg7 {[%clk 0:01:46.3]} 34. Bb3
{[%clk 0:00:20.4]} 34... Rf4 {[%clk 0:01:45.8]} 35. f3 {[%clk 0:00:17.5]} 35...
Nd4 {[%clk 0:01:45.3]} 36. Re7 {[%clk 0:00:15.4]} 36... Nxf3 {[%clk 0:01:41.1]}
37. Rxf7+ {[%clk 0:00:13.8]} 37... Rxf7 {[%clk 0:01:40.6]} 38. Bxf7 {[%clk
0:00:15.7]} 38... Kxf7 {[%clk 0:01:42.2]} 39. Rxf3+ {[%clk 0:00:16.5]} 39... Ke6
{[%clk 0:01:43.3]} 40. Rb3 {[%clk 0:00:18.4]} 40... g5 {[%clk 0:01:43.2]} 41.
Rxb7 {[%clk 0:00:19.8]} 41... g4 {[%clk 0:01:44.4]} 42. Rb6+ {[%clk 0:00:20.6]}
42... Kf5 {[%clk 0:01:44.7]} 43. Rxh6 {[%clk 0:00:22.5]} 43... g3 {[%clk
0:01:46]} 44. Rh8 {[%clk 0:00:22.9]} 44... Kf4 {[%clk 0:01:46.1]} 45. Rg8 {[%clk
0:00:24.1]} 45... Kf3 {[%clk 0:01:47.1]} 46. c4 {[%clk 0:00:25.7]} 46... g2
{[%clk 0:01:48.6]} 47. c5 {[%clk 0:00:27]} 47... Kf2 {[%clk 0:01:50.5]} 48. c6
{[%clk 0:00:28.2]} 48... g1=Q {[%clk 0:01:52.4]} 49. Rxg1 {[%clk 0:00:28.7]}
49... Kxg1 {[%clk 0:01:54.3]} 50. c7 {[%clk 0:00:30.3]} 1-0

[Event "*** Titled Tuesday Blitz"]
[Site "Chess.com"]
[Date "2019.06.04"]
[Round "8"]
[White "nrvisakh"]
[Black "volcanoexplorer"]
[Result "1/2-1/2"]
[WhiteElo "2739"]
[BlackElo "2607"]
[TimeControl "180+2"]
[EndTime "14:49:28 PDT"]
[Termination "Game drawn by agreement"]

1. e4 {[%clk 0:03:01.9]} 1... e5 {[%clk 0:03:00.7]} 2. Nf3 {[%clk 0:02:55.9]}
2... Nc6 {[%clk 0:03:01.9]} 3. Bc4 {[%clk 0:02:56]} 3... Bc5 {[%clk 0:03:02.2]}
4. d3 {[%clk 0:02:54.4]} 4... Nf6 {[%clk 0:03:02.3]} 5. Bb3 {[%clk 0:02:52.9]}
5... O-O {[%clk 0:02:46]} 6. c3 {[%clk 0:02:53.1]} 6... d5 {[%clk 0:02:45.3]} 7.
exd5 {[%clk 0:02:40.6]} 7... Nxd5 {[%clk 0:02:47.2]} 8. h3 {[%clk 0:02:42.5]}
8... Bf5 {[%clk 0:02:35.5]} 9. O-O {[%clk 0:02:41.2]} 9... Nf6 {[%clk
0:02:11.4]} 10. Bc2 {[%clk 0:02:39.7]} 10... Qd7 {[%clk 0:02:01]} 11. Re1 {[%clk
0:02:38.8]} 11... Rfe8 {[%clk 0:01:53.8]} 12. b4 {[%clk 0:02:36.3]} 12... Bb6
{[%clk 0:01:47.8]} 13. b5 {[%clk 0:02:35]} 13... Na5 {[%clk 0:01:16.3]} 14. Nxe5
{[%clk 0:02:35.2]} 14... Qd5 {[%clk 0:00:53.4]} 15. d4 {[%clk 0:02:30.1]} 15...
Bxc2 {[%clk 0:00:53.6]} 16. Qxc2 {[%clk 0:02:31.6]} 16... Nc4 {[%clk 0:00:55.3]}
17. Qb3 {[%clk 0:02:22.5]} 17... Nxe5 {[%clk 0:00:33.5]} 18. Qxd5 {[%clk
0:02:21.1]} 18... Nxd5 {[%clk 0:00:32.4]} 19. dxe5 {[%clk 0:02:22.4]} 19... a6
{[%clk 0:00:31.9]} 20. bxa6 {[%clk 0:02:17.4]} 20... Rxa6 {[%clk 0:00:32.8]} 21.
a3 {[%clk 0:02:15.6]} 21... Ra4 {[%clk 0:00:33.2]} 22. Ra2 {[%clk 0:02:16.2]}
22... Rc4 {[%clk 0:00:29.8]} 23. Rc2 {[%clk 0:02:14.4]} 23... Ba5 {[%clk
0:00:27.1]} 24. Bb2 {[%clk 0:02:14]} 24... Nf4 {[%clk 0:00:28]} 25. Nd2 {[%clk
0:02:13.7]} 25... Rc6 {[%clk 0:00:27]} 26. Nb3 {[%clk 0:02:10.8]} 26... Bb6
{[%clk 0:00:25.2]} 27. c4 {[%clk 0:02:11.8]} 27... Nd3 {[%clk 0:00:23.5]} 28.
Re4 {[%clk 0:02:11.1]} 28... f5 {[%clk 0:00:19]} 29. Ree2 {[%clk 0:02:09.1]}
29... Nxb2 {[%clk 0:00:18.6]} 30. Rxb2 {[%clk 0:02:11]} 30... Rxc4 {[%clk
0:00:19.8]} 31. g3 {[%clk 0:02:09.6]} 31... Re4 {[%clk 0:00:20.3]} 32. Rxe4
{[%clk 0:02:04]} 32... fxe4 {[%clk 0:00:22.2]} 33. a4 {[%clk 0:02:05.9]} 33...
Rxe5 {[%clk 0:00:22.3]} 34. a5 {[%clk 0:02:06.7]} 34... Bxa5 {[%clk 0:00:23.3]}
35. Nxa5 {[%clk 0:02:07.8]} 35... Rxa5 {[%clk 0:00:25.2]} 36. Rxb7 {[%clk
0:02:08.6]} 36... Ra1+ {[%clk 0:00:19.8]} 37. Kg2 {[%clk 0:02:08.7]} 37... Ra2
{[%clk 0:00:19.7]} 38. Rxc7 {[%clk 0:02:02.6]} 38... e3 {[%clk 0:00:20.3]} 39.
Re7 {[%clk 0:02:04]} 39... Rxf2+ {[%clk 0:00:16.7]} 40. Kg1 {[%clk 0:02:05.1]}
40... Re2 {[%clk 0:00:17.2]} 41. Kf1 {[%clk 0:02:06.1]} 41... Rh2 {[%clk
0:00:18.1]} 42. h4 {[%clk 0:02:04.8]} 42... Rf2+ {[%clk 0:00:16.7]} 43. Kg1
{[%clk 0:02:05.8]} 43... Rf3 {[%clk 0:00:12.2]} 44. Kg2 {[%clk 0:02:06.6]} 44...
Rf2+ {[%clk 0:00:12.6]} 45. Kg1 {[%clk 0:02:07.7]} 45... Rf3 {[%clk 0:00:11.4]}
1/2-1/2

[Event "*** Titled Tuesday Blitz"]
[Site "Chess.com"]
[Date "2019.06.04"]
[Round "8"]
[White "tteshan"]
[Black "XiaoKangZhong"]
[Result "1-0"]
[WhiteElo "2247"]
[BlackElo "2283"]
[TimeControl "180+2"]
[EndTime "14:49:34 PDT"]
[Termination "tteshan won by resignation"]

1. d4 {[%clk 0:03:01.9]} 1... Nf6 {[%clk 0:03:00.4]} 2. c4 {[%clk 0:03:02.5]}
2... g6 {[%clk 0:03:01.7]} 3. Nc3 {[%clk 0:03:04]} 3... d5 {[%clk 0:03:03.1]} 4.
Qb3 {[%clk 0:03:03.6]} 4... dxc4 {[%clk 0:02:55.3]} 5. Qxc4 {[%clk 0:03:05.5]}
5... Bg7 {[%clk 0:02:56.4]} 6. e4 {[%clk 0:03:04.4]} 6... a6 {[%clk 0:02:57.5]}
7. Nf3 {[%clk 0:03:04.7]} 7... b5 {[%clk 0:02:53.6]} 8. Qd3 {[%clk 0:03:04.8]}
8... O-O {[%clk 0:02:54.3]} 9. Be3 {[%clk 0:03:01.5]} 9... Bb7 {[%clk 0:02:55]}
10. a3 {[%clk 0:02:55.9]} 10... Nbd7 {[%clk 0:02:48.7]} 11. Be2 {[%clk
0:02:56.5]} 11... Nb6 {[%clk 0:02:47.9]} 12. b3 {[%clk 0:02:53.1]} 12... Nfd7
{[%clk 0:02:09.8]} 13. O-O {[%clk 0:02:53.6]} 13... Rc8 {[%clk 0:02:10.4]} 14.
Rac1 {[%clk 0:02:41.9]} 14... c5 {[%clk 0:02:09.5]} 15. d5 {[%clk 0:02:35.2]}
15... c4 {[%clk 0:02:07.1]} 16. Qb1 {[%clk 0:02:28.2]} 16... cxb3 {[%clk
0:01:34.5]} 17. Qxb3 {[%clk 0:02:30.1]} 17... Nc4 {[%clk 0:01:35.9]} 18. Bxc4
{[%clk 0:02:19.3]} 18... Rxc4 {[%clk 0:01:37.8]} 19. Ne2 {[%clk 0:02:19.5]}
19... Rxe4 {[%clk 0:01:35.2]} 20. Ng3 {[%clk 0:01:48]} 20... Ra4 {[%clk
0:01:30]} 21. Rfd1 {[%clk 0:01:35.8]} 21... Qa5 {[%clk 0:01:27.2]} 22. Rd3
{[%clk 0:01:20.4]} 22... Nf6 {[%clk 0:01:24.2]} 23. Bc5 {[%clk 0:01:14.8]} 23...
Rc8 {[%clk 0:01:18.2]} 24. Ne2 {[%clk 0:01:07.3]} 24... Ne4 {[%clk 0:01:08.4]}
25. Bb4 {[%clk 0:01:05.5]} 25... Rxc1+ {[%clk 0:01:05.9]} 26. Nxc1 {[%clk
0:01:07.4]} 26... Qc7 {[%clk 0:01:06.3]} 27. Ne2 {[%clk 0:01:03.2]} 27... Nc5
{[%clk 0:01:05.7]} 28. Qc2 {[%clk 0:00:56.8]} 28... Ne6 {[%clk 0:01:00.5]} 29.
Qxc7 {[%clk 0:00:50.5]} 29... Nxc7 {[%clk 0:01:02.4]} 30. d6 {[%clk 0:00:37.1]}
30... exd6 {[%clk 0:01:03.4]} 31. Rxd6 {[%clk 0:00:38.5]} 31... Nd5 {[%clk
0:01:02.7]} 32. Rd8+ {[%clk 0:00:39.1]} 32... Bf8 {[%clk 0:01:03.3]} 33. Bxf8
{[%clk 0:00:39.9]} 33... h5 {[%clk 0:01:02.3]} 34. Bc5+ {[%clk 0:00:33.8]} 34...
Kg7 {[%clk 0:01:02.7]} 35. h3 {[%clk 0:00:34.9]} 35... b4 {[%clk 0:01:02.5]} 36.
Bd4+ {[%clk 0:00:35.6]} 36... f6 {[%clk 0:01:03.2]} 37. Rd7+ {[%clk 0:00:36.6]}
37... Kh6 {[%clk 0:01:04.7]} 38. Rxb7 {[%clk 0:00:33.9]} 38... bxa3 {[%clk
0:01:06]} 39. Ba1 {[%clk 0:00:28.7]} 39... a2 {[%clk 0:01:06.3]} 40. Kh2 {[%clk
0:00:24.9]} 40... Nb4 {[%clk 0:01:06.9]} 41. Nc3 {[%clk 0:00:25.1]} 41... Ra3
{[%clk 0:01:08.2]} 42. Rxb4 {[%clk 0:00:25.1]} 1-0

[Event "*** Titled Tuesday Blitz"]
[Site "Chess.com"]
[Date "2019.06.04"]
[Round "8"]
[White "51616516516"]
[Black "1g41-0"]
[Result "1-0"]
[WhiteElo "2327"]
[BlackElo "2473"]
[TimeControl "180+2"]
[EndTime "14:49:44 PDT"]
[Termination "51616516516 won by resignation"]

1. d4 {[%clk 0:03:01.9]} 1... d5 {[%clk 0:03:00.6]} 2. c4 {[%clk 0:03:00.3]}
2... c6 {[%clk 0:03:01.6]} 3. Nc3 {[%clk 0:03:00.1]} 3... Nf6 {[%clk 0:03:01.3]}
4. Nf3 {[%clk 0:02:59]} 4... e6 {[%clk 0:03:02]} 5. Bg5 {[%clk 0:02:58.7]} 5...
dxc4 {[%clk 0:03:02.6]} 6. e4 {[%clk 0:02:54.8]} 6... b5 {[%clk 0:03:02.9]} 7.
e5 {[%clk 0:02:54.4]} 7... h6 {[%clk 0:03:03.5]} 8. Bh4 {[%clk 0:02:56]} 8... g5
{[%clk 0:03:04.1]} 9. Nxg5 {[%clk 0:02:57.6]} 9... hxg5 {[%clk 0:03:06]} 10.
Bxg5 {[%clk 0:02:59.5]} 10... Nbd7 {[%clk 0:03:07.9]} 11. g3 {[%clk 0:02:50.9]}
11... Bb7 {[%clk 0:03:08.7]} 12. Bg2 {[%clk 0:02:50.6]} 12... Qb6 {[%clk
0:03:10.3]} 13. exf6 {[%clk 0:02:50.1]} 13... O-O-O {[%clk 0:03:09.3]} 14. O-O
{[%clk 0:02:36.1]} 14... c5 {[%clk 0:03:08.5]} 15. d5 {[%clk 0:02:32]} 15... b4
{[%clk 0:03:09.1]} 16. Rb1 {[%clk 0:02:29.6]} 16... Qa6 {[%clk 0:03:09.6]} 17.
dxe6 {[%clk 0:02:28.2]} 17... Bxg2 {[%clk 0:03:09.4]} 18. e7 {[%clk 0:02:20]}
18... Bxf1 {[%clk 0:03:08.6]} 19. Kxf1 {[%clk 0:02:21.9]} 19... Rxh2 {[%clk
0:02:49.2]} 20. Kg1 {[%clk 0:02:09.5]} 20... Rh8 {[%clk 0:02:48.4]} 21. exd8=Q+
{[%clk 0:02:03.6]} 21... Kxd8 {[%clk 0:02:50.3]} 22. Nd5 {[%clk 0:02:04.5]}
22... Qe6 {[%clk 0:02:41.2]} 23. Qf3 {[%clk 0:01:38.9]} 23... Ne5 {[%clk
0:02:30.3]} 24. Qg2 {[%clk 0:01:38.1]} 24... Qf5 {[%clk 0:01:53.3]} 25. Rd1
{[%clk 0:01:17.5]} 25... Nf3+ {[%clk 0:01:42.2]} 26. Kf1 {[%clk 0:01:10.9]}
26... Bd6 {[%clk 0:01:43.6]} 27. Ne3 {[%clk 0:01:06.9]} 27... Qxg5 {[%clk
0:01:25.7]} 28. Qxf3 {[%clk 0:01:01.7]} 28... Kc7 {[%clk 0:01:06.7]} 29. Nxc4
{[%clk 0:00:50.8]} 29... Rd8 {[%clk 0:00:50.6]} 30. Na5 {[%clk 0:00:29.7]} 30...
Kb6 {[%clk 0:00:45.6]} 31. Nb7 {[%clk 0:00:16.6]} 31... Bc7 {[%clk 0:00:31.8]}
32. Nxd8 {[%clk 0:00:14.7]} 1-0